Cogmind - Beta 16.1 @@@ ROGUE MODE // 2026.03.05 @ 20:01:23 Player: muesli Result: Destroyed by ZI-ODY(R) with Subdweller Beam Cannon Performance ------------- Evolutions (0) 0 Regions Visited (2) 400 Robots Destroyed (3) 15 Value Destroyed (95) 95 Prototype IDs (0) 0 Alien Tech Used (0) 0 Bonus (-7) -7 TOTAL SCORE: 503 Bonus ------- Friendly Fire -7 Cogmind --------- Core Integrity 0/250 Matter 300/300 Energy 100/100 System Corruption 0% Temperature Cool (9) Movement Core (100) Ox1 Location -10/Subcaves Parts ------- > --- POWER (1) -------- (None) > --- PROPULSION (2) --- (None) > --- UTILITY (2) ------ Small Storage Unit > --- WEAPON (2) ------- (None) > --- INVENTORY (8) ---- Ion Engine Light Treads Light Treads Wheel Wheel Light Armor Plating Peak State ------------ > --- POWER ------------ Subdweller Power Source > --- PROPULSION ------- Subdweller Monowheel Subdweller Monowheel > --- UTILITY ---------- Small Storage Unit Sensor Array > --- WEAPON ----------- Assault Rifle Light Assault Rifle > --- INVENTORY -------- Ion Engine Light Treads Light Treads Wheel Wheel Light Armor Plating EM Pulse Gun [Rating: 10] Favorites ----------- Power Ion Engine Engine Ion Engine Propulsion Aluminum Leg Leg Aluminum Leg Wheel Subdweller Monowheel Utility Small Storage Unit Device Sensor Array Storage Small Storage Unit Weapon Light Assault Rifle Energy Gun EM Pulse Gun Ballistic Gun Light Assault Rifle Build | -11 -10 -10 ------- Run | Yrd Mat Sub Slots Evolved . | . . . Power . | . . . Propulsion . | . . . Utility . | . . . Weapon . | . . . Parts Attached 6 | . 2 4 Power 1 | . . 1 Engine 1 | . . 1 Core . | . . . Reactor . | . . . Propulsion 2 | . . 2 Treads . | . . . Leg . | . . . Wheel 2 | . . 2 Hover . | . . . Flight . | . . . Utility 1 | . 1 . Device 1 | . 1 . Storage . | . . . Processor . | . . . Hackware . | . . . Protection . | . . . Artifact . | . . . Weapon 2 | . 1 1 Energy Gun 1 | . . 1 Energy Cannon . | . . . Ballistic Gun 1 | . 1 . Ballistic Cannon . | . . . Launcher . | . . . Special Weapon . | . . . Impact Weapon . | . . . Slashing Weapon . | . . . Piercing Weapon . | . . . Special Melee Weapon . | . . . Unidentified Prototypes . | . . . Parts Lost 9 | . . 9 Power 2 | . . 2 Propulsion 3 | . . 3 Utility 1 | . . 1 Weapon 3 | . . 3 Highest Loss Streak 7 | . . 7 To Critical Strikes . | . . . Average Backups 7 | 6 6 7 Power 1 | 1 1 1 Propulsion 4 | 4 4 4 Utility . | . . 1 Weapon 1 | 1 1 . Tool/Special . | . . . Unused Backups 1 | . . 1 Power . | . . . Propulsion . | . . . Utility 1 | . . 1 Weapon . | . . . Tool/Special . | . . . Average Slot Usage (%) 91 | . 93 90 Engine 13 | . 14 13 Leg 17 | . 28 12 Wheel 6 | . . 9 Device 12 | . 10 13 Storage 14 | . 14 14 Energy Gun 1 | . 3 . Ballistic Gun 24 | . 21 26 Peak Build Rating 10 | 6 7 10 Average Rating 7 | 6 6 7 On Entrance 6 | 6 6 7 Avg Prop Armor Cover (%) . | . . . Naked Turns . | . . . Heaviest Build 14 | 13 14 14 Greatest Support 40 | 20 20 40 Greatest Overweight (x) 1 | . . 1 Average Overweight (x) . | . . . Largest Inventory Capacity 8 | 8 8 8 Average Capacity 8 | 8 8 8 Most Carried 8 | 6 8 8 Average Carried 7 | 6 6 7 Final Capacity 8 | 8 8 8 Final Carried 7 | 6 7 6 Class Distribution -------------------- 100% | Mutant Dominant Class ---------------- Mutant | -10/Materials Mutant | -10/Subcaves Resources | -11 -10 -10 ----------- Run | Yrd Mat Sub Matter Collected 332 | 200 . 132 Remotely . | . . . Salvage Created 95 | . . 95 Parts 7 | . . 7 Haulers Intercepted . | . . . Recyclers Shooed . | . . . Parts Field Recycled . | . . . Retrieved Matter . | . . . Parts Self-Destructed 16 | . . 16 Prevented . | . . . Parts Restored . | . . . Kills | -11 -10 -10 ------- Run | Yrd Mat Sub Combat Hostiles Destroyed 3 | . . 3 Guns 3 | . . 3 Classes Destroyed 3 | . . 3 Swarmer 1 | . . 1 Sentry 1 | . . 1 Subdweller 1 | . . 1 Best Kill Streak 2 | . . 2 Combat Bots Only 2 | . . 2 Max Kills in Single Turn 1 | . . 1 Gunslinging . | . . . Exploded . | . . . Melee . | . . . Uniques/NPCs Destroyed . | . . . Combat | -11 -10 -10 -------- Run | Yrd Mat Sub Hostile Shots Fired 59 | . . 59 Missed 14 | . . 14 Hits 45 | . . 45 Projectile 45 | . . 45 Damage Taken 928 | . . 928 Core 250 | . . 250 Absorbed by Shields . | . . . Core Remaining (%) 100 | 100 . . Volleys Fired 31 | . . 31 Largest 2 | . . 2 Hottest 40 | . . 40 Shots Fired 57 | . . 57 Gun 57 | . . 57 Cannon . | . . . Launcher . | . . . Special . | . . . Kinetic 53 | . . 53 Thermal . | . . . Explosive . | . . . Electromagnetic 4 | . . 4 Robot Hit Streak 19 | . . 19 Robot Miss Streak 3 | . . 3 Penetration Max . | . . . Secondary Targets 1 | . . 1 Max Gunslinging Chain 1 | . . 1 Shots Hit Robots 47 | . . 47 Core Hits 8 | . . 8 Critical Kills . | . . . Critical Parts Destroyed . | . . . Critical Strikes . | . . . Melee Attacks . | . . . Impact . | . . . Slashing . | . . . Piercing . | . . . Sneak Attacks . | . . . Combat Hostiles . | . . . Follow-up Attacks . | . . . Damage Inflicted 233 | . . 233 Guns 233 | . . 233 Cannons . | . . . Explosions . | . . . Melee . | . . . Ramming . | . . . Kinetic 188 | . . 188 Thermal . | . . . Explosive . | . . . Electromagnetic 45 | . . 45 Impact . | . . . Slashing . | . . . Piercing . | . . . Highest Corruption . | . . . Average Corruption . | . . . Corruption Purged . | . . . Corruption Blocked . | . . . Overload Shots . | . . . Overflow Damage . | . . . Projectiles . | . . . Explosions . | . . . Melee . | . . . Knockbacks . | . . . Impact . | . . . Kinetic . | . . . Secondary . | . . . Self-Inflicted Damage . | . . . Shots . | . . . Rammed . | . . . Targets Rammed . | . . . Kicked . | . . . Crushed . | . . . Highest Temperature . | . . . Average Temperature . | . . . Received Heat Transfer 249 | . . 249 Siege Activations . | . . . Martial Activations . | . . . Shielding Activations . | . . . Robots Disrupted . | . . . Combat Hostiles . | . . . Robots Corrupted . | . . . Combat Hostiles . | . . . Parts Fried . | . . . Impact Corruptions . | . . . Robots Melted . | . . . Combat Hostiles . | . . . Parts Melted . | . . . Heat Transferred . | . . . Parts Sabotaged . | . . . Parts Stolen . | . . . Parts Stripped . | . . . Power Chain Reactions . | . . . Alert | -11 -10 -10 ------- Run | Yrd Mat Sub Maximum Alert Level . | . . . Low Security (%) 100 | 100 100 . Level 1 . | . . . Level 2 . | . . . Level 3 . | . . . Level 4 . | . . . Level 5 . | . . . High Security . | . . . Max Security . | . . . Peak Influence . | . . . Initial . | . . . Average . | . . . Influence Increases 40 | . . 40 Destroy 0b10 Robot/C 40 | . . 40 Influence Decreases 40 | . . 40 Time Decay 20 | . . 20 Lost Part 20 | . . 20 Squads Dispatched . | . . . Investigation . | . . . Extermination . | . . . Reinforcement . | . . . Assault . | . . . Garrison . | . . . Intercept . | . . . Searches Triggered . | . . . Construction Impeded . | . . . Haulers Reinforced . | . . . Active Scanning Responses . | . . . Cargo Convoy Interrupts . | . . . Stealth | -11 -10 -10 --------- Run | Yrd Mat Sub Distress Signals . | . . . Communications Jammed . | . . . Distress Signals . | . . . Times Spotted 7 | . . 7 Peak Tracking Total 4 | . . 4 Tactical Retreats . | . . . Traps | -11 -10 -10 ------- Run | Yrd Mat Sub Traps Triggered . | . . . Indirectly . | . . . Trap Hack Attempts . | . . . Triggered . | . . . Disarmed . | . . . Reprogrammed . | . . . Reused . | . . . Traps Extracted . | . . . Installed . | . . . Triggered . | . . . Machines | -11 -10 -10 ---------- Run | Yrd Mat Sub Machines Disabled . | . . . Max in Single Turn . | . . . Machines Repaired . | . . . Machines Dismantled . | . . . Machines Sabotaged . | . . . Overloaded Fab Kills . | . . . Hacking | -11 -10 -10 --------- Run | Yrd Mat Sub Machines Accessed . | . . . Terminals . | . . . Fabricators . | . . . Repair Stations . | . . . Recycling Units . | . . . Scanalyzers . | . . . Garrison Access . | . . . Total Hacks . | . . . Successful . | . . . Failed . | . . . Catastrophic . | . . . Database Lockouts . | . . . Manual . | . . . Terminals . | . . . Fabricators . | . . . Repair Stations . | . . . Recycling Units . | . . . Scanalyzers . | . . . Garrison Access . | . . . Terminal Hacks . | . . . Fabricator Hacks . | . . . Repair Station Hacks . | . . . Recycling Unit Hacks . | . . . Scanalyzer . | . . . Garrison Access Hacks . | . . . Unauthorized Hacks . | . . . Terminals . | . . . Fabricators . | . . . Repair Stations . | . . . Recycling Units . | . . . Scanalyzers . | . . . Garrison Access . | . . . Data Cores Recovered . | . . . Used . | . . . Hacking Detections . | . . . Full Trace Events . | . . . Feedback Events . | . . . Feedback Blocked . | . . . Robot Schematics Acquired . | . . . Robots Built . | . . . Authchips . | . . . Time . | . . . Total Robot Build Rating . | . . . Part Schematics Acquired . | . . . Parts Built . | . . . Authchips . | . . . Time . | . . . Total Part Build Rating . | . . . Part Studies Acquired . | . . . Parts Repaired . | . . . Time . | . . . Parts Recycled . | . . . Recycled Matter . | . . . Retrieved Matter . | . . . Retrieved Components . | . . . Parts Scanalyzed . | . . . Part Schematics Acquired . | . . . Parts Damaged . | . . . Bothacking | -11 -10 -10 ------------ Run | Yrd Mat Sub Used RIF Installer . | . . . Robots Hacked . | . . . Non-combat . | . . . Combat . | . . . Robot Hacks Applied . | . . . Relay Couplers Released . | . . . Fabnet Peak Effective % . | . . . Robots Rewired . | . . . Allies Hacked . | . . . Hacks Repelled . | . . . Allies | -11 -10 -10 -------- Run | Yrd Mat Sub Total Allies . | . . . Largest Group . | . . . Highest-Rated Group . | . . . Highest-Rated Ally . | . . . Total Orders . | . . . Ally Attacks . | . . . Total Damage . | . . . Kills . | . . . Allies Corrupted . | . . . Allies Melted . | . . . Intel | -11 -10 -10 ------- Run | Yrd Mat Sub Active Infowar (turns) 542 | . 139 403 Sensors 542 | . 139 403 Robot Analysis Total . | . . . Derelict Logs Recovered . | . . . Drone Launches . | . . . Drone Recoveries . | . . . Exploration | -11 -10 -10 ------------- Run | Yrd Mat Sub Turns Passed 610 | 9 174 427 Spaces Moved 388 | 8 142 238 Core . | . . . Treads . | . . . Legs 280 | 8 142 130 Wheels 108 | . . 108 Hover . | . . . Flight . | . . . Fastest Speed 110 | 120 120 110 Average Speed 129 | 120 120 135 Slowest Speed 190 | 120 120 190 Overloaded Moves . | . . . Propulsion Burnouts . | . . . Robots Hopped . | . . . Potential Cave-ins . | . . . Cave-ins Triggered . | . . . Exploration Rate (%) 8 | 1 15 9 Regions Visited 2 Branch Regions 1 Pre-discovered Areas . | . . . Known Exits Taken . | . . . Unknown Exits Taken 2 | 1 1 . Scrap Searched . | . . . Spaces Dug . | . . . Terrain Destroyed . | . . . Melee . | . . . Projectile . | . . . AOE . | . . . Terrain Rammed . | . . . Walls Destroyed . | . . . Machines Disabled . | . . . Actions | -11 -10 -10 --------- Run | Yrd Mat Sub Total 443 | 7 145 291 Wait 16 | . . 16 Move 386 | 7 141 238 Hop . | . . . Pick Up 2 | . 1 1 Fast Attach 3 | . 1 2 Attach 3 | . 1 2 Detach 1 | . 1 . Swap . | . . . Drop 1 | . . 1 Fire 31 | . . 31 Melee . | . . . Ram . | . . . Kick . | . . . Crush . | . . . Escape Stasis . | . . . Rewire . | . . . Trap . | . . . Miscellaneous . | . . . Route ------- -11/Scrapyard -10/Materials -10/Subcaves (discovered 1 exit: [*Scr]) History --------- Turn | Location | Event 1 | -11/Scrapyard | Discovered new exit (range 1) 10 | -11/Scrapyard | Entered Materials 11 | -10/Materials | Met a group of wandering Federalists 179 | -10/Materials | Discovered new exit (range 5) 184 | -10/Materials | Entered Subcaves 185 | -10/Subcaves | Continued accompanying wandering Federalists (6) 185 | -10/Subcaves | Approached by a straggling Scientist 229 | -10/Subcaves | Ambushed by Subdwellers from Twisted Machinery 305 | -10/Subcaves | Build established: Mutant 601 | -10/Subcaves | Core integrity fell below 50% 609 | -10/Subcaves | Core integrity fell below 20% 611 | -10/Subcaves | Destroyed by ZI-ODY(R) with Subdweller Beam Cannon Last Messages --------------- 00359_ Subatomizers dissect the Sub. Optics. 00366_ Acquired 39 matter. 00370_ Subatomizers dissect the Sub. Optics. 00395_ Acquired Sub. Monowheel. 00428_ Subatomizers dissect the Sub. Optics. 00440_ Subatomizers dissect the Sub. Monowheel. 00458_ Acquired Sub. Monowheel. 00460_ Dropped Aluminum Leg. 00462_ Acquired 20 matter. 00480_ Subatomizers dissect the Disposable Heat Sink. 00581_ Lgt. Assault Rifle destroyed. 00585_ Assault Rifle destroyed. 00587_ Sensor Array destroyed. [Achievement: There's More Where That Came From] 00604_ Sub. Power Source destroyed. 00605_ EM Pulse Gun destroyed. 00606_ Sub. Monowheel destroyed. Map ----- +----------------------------------------------------+ | ?????????????????????????????## ##???????????????? | | ?????????????????????????????# ####????????????? | | ?????????????????????????????? ????????????? | | ??????????????????????????????? ?????????????? | | ???????????????????????????????# #?????????????? | | ??????????????????????????????## #?????????????? | | ?????????????????????????????## ######????????? | | ?????????????????????????????# ## #????????? | | ??????????????????????????##### ####?????? | | ???????????????????????#### # # ##????? | | ???????????????????????# ####?? | | ???????????????????????## # # ### | | ???????????????????????# #?## ## | | ????????????????????????# ?## #### #### | | ???????????????????????## ## #?## ##?### | | ??????????????????????## #??# ##?### | | ??????????????????????# #?## ### #### | | ??????????????????????# #?# ## ### | | ??????????????????????## ##?# | | ????????????#####??????#### ##??# | | ????????????# """#####????## #???# ## | | ????????????#"""" ;;###??## #???# ### | | ?????????#### > #### ##### #### | | ???????# "" ## ### ### | | ??????# """"" #### R ##?# ###### " | | ??????????"" "" #???# R @ ##??# #????## " | | ??????????"""" #????# #### ##???### ###?????# "" | | ??????????? " #?????###??###??????#####???????###= | | ??????????? #??????????????????????????????????# | | ?????????? #???????????????????????????????????#" | | ?????????###???????????????????????????????????#"" | | ??????????????????????????????????????????????#""" | | ??????????????????????????????????????????????#"" | | ??????????????????????????????????????????????#" # | | ??????????????????????????????????????????????###? | | ?????????????????????????????????????????????????? | | ?????????????????????????????????????????????????? | | ?????????????????????????????????????????????????? | | ?????????????????????????????????????????????????? | | ?????????????????????????????????????????????????? | | ?????????????????????????????????????????????????? | | ?????????????????????????????????????????????????? | | ?????????????????????????????????????????????????? | | ?????????????????????????????????????????????????? | | ?????????????????????????????????????????????????? | | ?????????????????????????????????????????????????? | | ?????????????????????????????????????????????????? | | ?????????????????????????????????????????????????? | | ?????????????????????????????????????????????????? | | ?????????????????????????????????????????????????? | +----------------------------------------------------+ Best States ------------- Heat Dissipation 25 Energy Generation 15 Energy Capacity 250 Matter Stores 300 Matter Capacity 300 Sight Range 16 Robot Scan Range 14 Terrain Scan Density 10 Evasion (%) 55 Item Schematics ----------------- None Robot Schematics ------------------ None Fabricated ------------ Nothing Repaired ---------- Nothing Studied --------- None Alien Tech Used ----------------- None Achievements -------------- Strength In Numbers There's More Where That Came From Challenges ------------ None Game ------ Seed ElectronBraceInjector Manual? 0 Play Time 00:07:20 Cumulative 19.6 hours Start 2026.03.05 @ 19:53:55 End 2026.03.05 @ 20:01:23 Sessions 1 Manual Loads 0 Difficulty Rogue Special Mode None Game No. 45 Rogue 42 Adventurer 3 Explorer 0 Win Type - Total 0 Types 0/0/0/0/0/0/0/0/0/0 Lore% 8 Gallery% 16 Achievement% 9 Wizard Run 0 Options --------- Layout 2 ASCII 1 Keyboard 1 Movement Vi Keybinds 0 Fullscreen 2 Font 32/SmallcapsGlow Map View 50x44 Zoom Use 0% Tactical HUD 1 Map Filters NONE Filters NONE Steam 1 RUN: 7f7c4dc0-1c58-43b8-965c-1ea2d0257365